bitfinex/quotes_ETHUSD_20240718
["timestamp","ask_amount","ask_price","bid_price","bid_amount"]
[1721312571852,2.475,3459.3,3458.9,0.1516676]
[1721312572230,6.94073189,3459.3,3459.0,0.05788264]
[1721312572436,2.89092,3459.1,3459.0,0.05788264]
[1721312572761,2.89092,3459.1,3458.9,0.1516676]
[1721312573253,2.89092,3459.1,3459.0,0.0580758]
[1721312573458,3.49040071,3459.1,3459.0,0.0580758]
[1721312573619,0.59948071,3459.1,3459.0,0.0580758]
[1721312574345,0.59948071,3459.2,3459.0,0.0580758]
[1721312574651,0.59948071,3459.3,3459.0,0.0580758]
[1721312574853,0.59948071,3459.2,3459.0,0.0580758]
[1721312575174,0.59948071,3459.1,3458.9,0.1516676]
[1721312575936,2.341,3459.0,3458.9,0.1516676]
[1721312576249,5.83148071,3459.0,3458.9,0.1516676]
[1721312576560,5.83133245,3459.0,3458.9,0.1516676]
[1721312576746,5.232,3459.0,3458.9,0.1516676]
[1721312576932,6.27509607,3459.0,3458.9,0.1516676]
[1721312577144,6.8741689,3459.0,3458.9,0.1516676]
[1721312577333,9.16609607,3459.0,3458.9,0.1516676]
[1721312577870,10.06531713,3459.0,3458.9,0.1516676]
[1721312578167,10.06477045,3459.0,3458.9,0.1516676]
[1721312578463,9.76494933,3459.0,3458.9,0.1516676]
[1721312578765,9.16609607,3459.0,3458.9,0.1516676]
[1721312578930,9.76489099,3459.0,3458.9,0.1516676]
[1721312579131,6.87389099,3459.0,3458.9,0.1516676]
[1721312579330,6.27509607,3459.0,3458.9,0.1516676]
[1721312580020,9.16609607,3459.0,3458.9,0.1516676]
[1721312580456,6.27509607,3459.0,3458.9,0.1516676]
[1721312581876,3.10060825,3459.3,3458.9,0.1516676]
[1721312582242,5.782,3459.0,3458.9,0.1516676]
[1721312582725,8.1551,3459.0,3458.9,0.1516676]
[1721312583468,11.1551,3459.0,3458.9,0.1516676]
[1721312583668,12.73042676,3459.0,3458.9,0.1516676]
[1721312584482,16.22022168,3459.0,3458.9,0.1516676]
[1721312584626,15.62142676,3459.0,3458.9,0.1516676]
[1721312585031,12.73042676,3459.0,3458.9,0.1516676]
[1721312588375,16.22022168,3459.0,3458.9,0.1516676]
[1721312588620,15.62142676,3459.0,3458.9,0.1516676]
[1721312588785,16.21848247,3459.0,3458.9,0.1516676]
[1721312589077,12.73042676,3459.0,3458.9,0.1516676]
[1721312589285,15.62142676,3459.0,3458.9,0.1516676]
[1721312589573,16.21833783,3459.0,3458.9,0.1516676]
[1721312589989,13.32733783,3459.0,3458.9,0.1516676]
[1721312590345,12.73042676,3459.0,3458.9,0.1516676]
[1721312590652,9.83942676,3459.0,3458.9,0.1516676]
[1721312590851,12.73042676,3459.0,3458.9,0.1516676]
[1721312591394,15.62142676,3459.0,3458.9,0.1516676]
[1721312592063,16.76833783,3459.0,3458.9,0.1516676]
[1721312592289,16.76833783,3459.0,3456.4,6.319]
[1721312592290,2.4717,3458.1,3456.5,2.89304]
[1721312592448,2.89223,3457.6,3456.7,2.8929]
[1721312592645,2.89195,3457.9,3456.7,2.89285]
[1721312592846,3.0,3458.0,3456.8,0.05749707]
[1721312593039,3.0,3458.0,3456.9,2.89269]
[1721312593040,2.89198,3457.9,3456.9,2.89269]
[1721312593273,2.8924,3457.4,3456.6,2.893]
[1721312593588,2.89228,3457.5,3456.6,2.893]
[1721312593880,2.89228,3457.5,3456.7,0.05753783]
[1721312594184,2.89235,3457.4,3456.7,0.05753783]
[1721312594391,2.89233,3457.5,3456.7,0.05753783]
[1721312594562,2.89233,3457.5,3456.7,2.89292]
[1721312594761,2.89215,3457.7,3456.8,2.95033707]
[1721312594960,2.89215,3457.7,3456.9,2.89274]
[1721312595291,3.0,3458.0,3457.1,2.89256]
[1721312595489,3.0,3458.0,3457.2,2.8925]
[1721312595647,3.0,3458.0,3457.3,2.8924]
[1721312596196,2.4717,3458.1,3457.5,2.89223]
[1721312596349,2.4717,3458.1,3457.4,0.05725255]
[1721312596350,2.89178,3458.1,3457.4,0.05725255]
[1721312596689,2.89184,3458.0,3457.6,0.05717106]
[1721312596844,2.89193,3457.9,3457.5,0.0572118]
[1721312597049,2.89193,3457.9,3457.7,0.05713032]
[1721312597286,2.89193,3457.9,3457.6,0.05717106]
[1721312597589,2.89178,3458.1,3457.7,0.05713032]
[1721312597744,2.89184,3458.0,3457.7,0.05713032]
[1721312597944,8.17618,3458.6,3457.1,2.89252]
[1721312598184,2.89191,3458.0,3457.8,0.05708958]
[1721312598394,2.89191,3458.0,3457.1,2.89252]
[1721312598600,2.89171,3458.2,3457.3,2.89237]
[1721312598801,5.2848,3458.6,3456.7,5.22109]
[1721312598802,2.2848,3458.6,3457.9,2.8919]
[1721312599103,2.00423378,3458.9,3457.9,2.8919]
[1721312599104,2.89115,3458.9,3458.0,2.89184]
[1721312599242,3.09157338,3458.9,3458.0,2.94884812]
[1721312599450,2.89118,3458.8,3458.0,2.94884812]
[1721312600196,2.89131,3458.7,3458.0,0.05700812]
[1721312600497,2.89127,3458.7,3458.0,0.05700812]
[1721312600793,0.20042338,3458.9,3457.2,2.89248]
[1721312600794,2.89176,3458.1,3457.2,2.89248]
[1721312601496,10.17143,3458.5,3457.0,2.8926]
[1721312601707,7.28,3458.5,3457.8,2.89195]
[1721312602016,7.28,3458.5,3457.9,2.89185]
[1721312602157,2.89117,3458.8,3458.0,2.89182]
[1721312602589,5.89128,3458.7,3458.0,2.89182]
[1721312602898,5.89128,3458.7,3457.3,2.95019217]
[1721312602899,2.89135,3458.6,3457.9,2.89191]
[1721312603064,2.89144,3458.5,3457.7,2.89203]
[1721312603820,2.89144,3458.5,3457.8,2.892]
[1721312603982,2.89144,3458.5,3457.6,2.89217]
[1721312604186,2.89165,3458.3,3457.3,2.89235]
[1721312604402,2.89178,3458.1,3457.3,2.89235]
[1721312605683,2.3911,3458.2,3457.5,2.89226]
[1721312605890,2.3911,3458.2,3457.5,2.89219]
[1721312606090,5.28278,3458.2,3457.5,2.89219]
[1721312606293,5.28278,3458.2,3457.3,2.89236]
[1721312606294,5.28282,3458.2,3457.3,2.89236]
[1721312606492,5.28282,3458.2,3456.8,3.0]
[1721312606493,0.8752759,3458.1,3457.5,2.89225]
[1721312606717,5.16702,3458.6,3457.8,2.89201]
[1721312606718,5.16701,3458.6,3457.8,2.89201]
[1721312606914,4.75119856,3458.7,3457.1,2.4148]
[1721312607242,3.0,3458.8,3458.2,2.89161]
[1721312607519,3.0,3458.8,3458.3,0.05695844]
[1721312607723,2.89135,3458.6,3457.8,2.89195]
[1721312607935,8.78246,3458.8,3457.9,2.94904136]
[1721312608100,3.0,3458.8,3458.0,2.89182]
[1721312608298,3.0,3458.8,3458.2,2.89162]
[1721312608515,3.0,3458.8,3457.8,2.89199]
[1721312608516,2.89125,3458.7,3457.8,2.89199]
[1721312608716,7.208333,3458.8,3458.3,0.05695844]
[1721312608925,7.208333,3458.8,3457.9,2.89192]
[1721312608926,4.317103,3458.8,3458.1,2.89174]
[1721312609129,4.317103,3458.8,3458.2,2.89166]
[1721312609422,7.28,3458.9,3458.5,2.89141]
[1721312609608,7.28,3458.9,3458.7,2.89124]
[1721312610032,7.28,3458.9,3458.8,2.89117]
[1721312610210,7.28,3458.9,3458.8,2.94792485]
[1721312610414,5.16603,3459.7,3458.9,2.89108]
[1721312610415,7.28,3459.7,3458.9,2.89108]
[1721312610606,5.76287645,3459.9,3458.8,2.94792485]
[1721312610607,1.30428765,3459.6,3458.8,2.94792485]
[1721312610912,1.30428765,3459.6,3458.8,2.89117]
[1721312610913,2.89051,3459.6,3458.8,2.89117]
[1721312611244,2.89051,3459.6,3458.9,2.94773889]
[1721312611445,2.89034,3459.8,3459.1,2.89092]
[1721312611597,3.0,3459.7,3459.0,2.89093]
[1721312611800,5.89042,3459.7,3459.2,0.05653677]
[1721312612148,2.89062,3459.5,3458.4,2.89145]
[1721312612430,2.89062,3459.5,3458.0,2.4148]
[1721312612431,2.89131,3458.7,3458.0,2.89184]
[1721312612616,2.3743,3459.0,3458.5,0.0547182]
[1721312612791,3.0,3459.0,3458.3,2.89154]
[1721312612996,3.0,3459.0,3458.3,2.89158]
[1721312613343,3.0,3459.0,3458.4,0.05480537]
[1721312613501,3.0,3459.0,3458.4,2.89144]
[1721312613704,3.0,3459.0,3458.5,0.05476465]
[1721312613908,2.89115,3458.9,3458.5,0.05476465]
[1721312614102,3.48814645,3458.9,3458.1,2.89173]
[1721312614331,2.89117,3458.8,3458.1,2.89173]
[1721312614518,0.59699645,3458.9,3458.4,2.8915]
[1721312614840,3.0,3459.0,3458.5,2.89141]
[1721312614841,0.59699645,3459.0,3458.5,2.89141]
[1721312615144,7.28,3459.1,3458.8,2.89112]
[1721312615298,0.89549467,3459.4,3458.8,2.89112]
[1721312615299,0.59699645,3459.3,3458.8,2.89112]
[1721312615499,2.3743,3459.5,3459.0,2.891]
[1721312615500,2.97129645,3459.5,3459.0,2.891]
[1721312615702,5.78316685,3459.5,3459.0,2.891]
[1721312615920,5.78316685,3459.5,3458.8,2.89111]
[1721312616347,5.78316685,3459.5,3459.0,2.89096]
[1721312616533,0.59699645,3459.5,3459.0,2.89098]
[1721312616743,0.59699645,3459.4,3458.8,2.89114]
[1721312617056,21.06305467,3459.6,3458.8,2.89114]
[1721312617057,0.59699645,3459.3,3458.9,2.89109]
[1721312617259,0.59699645,3459.3,3458.8,2.8911]
[1721312617260,0.59699645,3459.3,3459.0,2.891]
[1721312617417,20.23699645,3459.6,3459.0,2.94509674]
[1721312617616,20.23699645,3459.6,3459.0,2.891]
[1721312617812,20.23699645,3459.6,3458.8,2.89114]
[1721312617813,0.59699645,3459.5,3459.1,0.05405604]
[1721312618064,3.48766645,3459.4,3459.1,0.05405604]
[1721312618269,2.89097,3459.1,3458.4,2.89145]
[1721312618571,2.89097,3459.1,3458.5,0.05425903]
[1721312618572,0.5988762,3458.9,3458.5,0.05425903]
[1721312619066,3.4900662,3458.8,3458.0,2.89182]
[1721312619428,0.5988762,3458.8,3458.2,2.89167]
[1721312619946,1.26772329,3458.8,3458.3,0.05432155]
[1721312620135,0.5988762,3458.6,3458.3,2.89158]
[1721312620339,0.5988762,3458.8,3458.1,2.89169]
[1721312620576,0.5988762,3458.8,3458.2,0.05436228]
[1721312620730,0.5988762,3458.9,3458.3,2.89157]
[1721312620926,0.5988762,3458.9,3458.4,2.94573083]
[1721312621130,0.5988762,3459.0,3458.5,2.89141]
[1721312621326,0.5988762,3459.0,3458.6,0.05419939]
[1721312621632,0.5988762,3459.0,3458.5,2.89141]
[1721312621829,0.5988762,3459.0,3458.7,2.89119]
[1721312622147,0.5988762,3459.0,3458.8,0.05420569]
[1721312622342,0.5988762,3459.1,3458.8,0.05420569]
[1721312622555,0.5988762,3459.1,3458.3,2.89156]
[1721312622887,0.5988762,3459.1,3457.2,2.89247]
[1721312622888,3.4899262,3459.0,3458.4,0.05436856]
[1721312623046,0.5988762,3458.8,3458.4,0.05436856]
[1721312623368,0.5988762,3458.8,3458.0,2.89184]
[1721312623369,3.4901962,3458.7,3458.0,2.89184]
[1721312623531,0.5988762,3458.7,3457.9,2.89187]
[1721312623734,2.4979,3458.8,3458.3,2.89157]
[1721312623735,3.0967762,3458.8,3458.3,2.89157]
[1721312624075,3.0967762,3458.8,3458.4,0.05433761]
[1721312624586,3.0967762,3458.8,3457.8,2.89194]
[1721312624587,0.5988762,3458.6,3457.8,2.89194]
[1721312624730,0.5988762,3458.5,3457.7,2.89205]
[1721312624929,0.5988762,3458.6,3457.9,2.89186]
[1721312625372,0.5988762,3458.6,3458.1,2.89175]
[1721312625831,0.5988762,3458.6,3458.3,2.89155]
[1721312626028,0.5988762,3458.7,3458.5,2.89142]
[1721312626232,0.5988762,3458.9,3458.5,2.89142]
[1721312626471,0.5988762,3458.9,3458.3,5.78306]
[1721312626775,0.5988762,3458.8,3458.3,2.89151]
[1721312626974,2.8917,3458.2,3456.7,2.1125161]
[1721312627272,2.2689,3457.8,3456.1,0.01]
[1721312627485,2.2689,3457.1,3456.1,2.90342]
[1721312627687,0.59847972,3456.7,3456.2,2.89328]
[1721312628175,0.59847972,3456.8,3456.2,2.89327]
[1721312628474,0.59847972,3457.0,3456.3,2.89325]
[1721312628636,0.59847972,3457.0,3456.6,2.893]
[1721312628833,0.59847972,3457.2,3456.6,2.89299]
[1721312629056,3.89771958,3457.4,3456.7,2.89293]
[1721312629057,3.59847972,3457.3,3456.7,2.89293]
[1721312629231,0.59847972,3457.3,3456.7,2.89293]
[1721312629438,0.59847972,3457.3,3456.5,2.89309]
[1721312629991,0.59847972,3457.3,3456.7,2.89293]
[1721312630198,3.89771958,3457.5,3456.8,2.89277]
[1721312630199,0.59847972,3457.5,3456.8,2.89277]
[1721312630367,0.59847972,3457.5,3457.1,2.89257]
[1721312630551,0.59847972,3457.5,3456.4,2.89317]
[1721312630552,0.59847972,3457.5,3457.0,2.89267]
[1721312631370,3.59847972,3457.7,3457.0,2.89267]
[1721312631893,6.49060972,3457.7,3456.8,2.8928]
[1721312632099,6.49060972,3457.7,3456.3,2.89325]
[1721312632100,2.89256,3457.2,3456.3,2.89325]
[1721312632250,2.89256,3457.2,3456.2,2.89327]
[1721312632251,2.89256,3457.2,3456.9,0.05293468]
[1721312632452,2.8924,3457.4,3456.5,2.89309]
[1721312632453,0.59847972,3457.4,3456.5,2.89309]
[1721312632650,0.59847972,3457.4,3456.6,2.89301]
[1721312632651,0.96807424,3457.4,3456.6,2.89301]
[1721312632858,0.96807424,3457.4,3456.6,2.94607902]
[1721312633059,0.96807424,3457.4,3456.6,0.05306902]
[1721312633458,0.96807424,3457.4,3456.7,2.89285]
[1721312633691,3.0,3457.5,3456.7,2.94591096]
[1721312633879,3.59847972,3457.5,3456.7,2.94591096]
[1721312634061,3.0,3457.5,3456.8,2.89283]
[1721312634267,3.0,3457.5,3456.9,2.89275]
[1721312634469,0.59847972,3457.6,3456.9,2.94572944]
[1721312634788,0.59847972,3457.6,3457.0,0.05293869]
[1721312635290,5.30745667,3457.6,3457.0,0.05293869]
[1721312635457,3.59847972,3457.5,3457.0,0.05293869]
[1721312635684,3.59847972,3457.5,3456.6,2.89301]
[1721312635685,2.89235,3457.4,3456.6,2.89301]
[1721312635854,3.59847972,3457.5,3456.5,2.89309]
[1721312636187,3.59847972,3457.5,3456.1,2.90339]
[1721312636188,0.59847972,3457.5,3456.8,2.89284]
[1721312636406,2.4014,3457.8,3457.2,2.8925]
[1721312636551,2.4014,3457.8,3457.0,2.89263]
[1721312636751,5.4014,3457.8,3457.1,0.05309928]
[1721312636989,5.4014,3457.8,3457.1,2.89257]
[1721312639087,2.89209,3457.7,3457.0,2.89266]
[1721312639288,4.00030557,3457.7,3456.9,2.89271]
[1721312639495,4.00030557,3457.7,3457.1,0.05309928]
[1721312639496,1.10821557,3457.7,3457.1,0.05309928]
[1721312639665,5.4014,3457.8,3457.2,2.89244]
[1721312639855,2.4014,3457.8,3457.2,2.94549853]
[1721312640059,2.1014,3457.8,3456.8,2.89281]
[1721312640253,2.1014,3457.8,3457.3,0.05301778]
[1721312640455,2.89234,3457.4,3456.5,2.89304]
[1721312640698,3.470792,3457.4,3456.6,2.893]
[1721312640995,3.470792,3457.4,3456.6,2.94626864]
[1721312641495,2.89243,3457.3,3456.6,2.94626864]
[1721312641858,0.578452,3457.4,3456.6,2.94626864]
[1721312642280,3.0,3457.5,3456.6,2.94626864]
[1721312642480,2.8925,3457.3,3456.6,0.05326864]
[1721312642683,2.89266,3457.1,3456.6,0.05326864]
[1721312642880,2.89269,3457.0,3456.2,2.89335]
[1721312643103,2.89269,3457.0,3456.7,0.05322788]
[1721312643259,2.89269,3457.0,3456.2,2.89335]
[1721312643660,2.89269,3457.0,3456.3,0.05339095]
[1721312643859,2.89277,3456.9,3456.3,0.05339095]
[1721312644657,2.89277,3456.9,3456.1,0.01]
[1721312644859,5.78561,3456.9,3456.4,0.05335018]
[1721312645108,2.89286,3456.8,3456.1,2.90339]
[1721312645313,2.89274,3457.0,3456.1,2.90339]
[1721312645513,2.89274,3457.0,3456.2,2.94677172]
[1721312645685,2.89276,3456.9,3456.2,0.05343172]
[1721312646214,3.55310097,3457.1,3456.2,0.05343172]
[1721312646417,2.89318,3456.4,3456.2,0.05343172]
[1721312646585,2.89318,3456.4,3456.1,0.01]
[1721312646788,2.89318,3456.4,3456.3,0.05339095]
[1721312647115,2.89318,3456.4,3456.2,0.05343172]
[1721312647301,5.89269,3457.0,3456.1,0.01]
[1721312647302,2.89308,3456.6,3456.1,0.01]
[1721312647684,2.89308,3456.6,3456.2,0.05343172]
[1721312647881,6.49116972,3457.0,3456.2,0.05343172]
[1721312648085,2.89326,3456.3,3456.2,0.05343172]
[1721312648307,8.13072,3456.3,3456.2,0.05343172]
[1721312648630,2.89335,3456.2,3456.1,0.01]
[1721312648918,2.3442,3456.3,3456.1,0.01]
[1721312649128,2.89319,3456.4,3456.1,0.01]
[1721312649280,2.89319,3456.4,3456.2,0.05357292]
[1721312649725,2.8931,3456.5,3456.2,0.05357292]
[1721312649922,5.78627,3456.5,3456.2,0.05357292]
[1721312650126,7.335997,3456.5,3456.2,0.05357292]
[1721312650281,4.442827,3456.5,3456.2,0.05357292]
[1721312650680,2.89318,3456.4,3456.1,0.01]
[1721312650914,2.89318,3456.4,3456.3,0.05353215]
[1721312651217,1.549727,3456.5,3456.1,0.01]
[1721312651218,4.442867,3456.5,3456.1,0.01]
[1721312651634,3.0,3457.0,3456.2,2.94685292]
[1721312651785,2.89276,3456.9,3456.2,0.05357292]
[1721312652122,2.89289,3456.8,3456.2,0.05357292]
[1721312652316,2.89276,3456.9,3456.2,0.05357292]
[1721312652486,2.89285,3456.8,3456.2,0.05357292]
[1721312652899,5.89274,3457.0,3456.2,0.05357292]
[1721312653096,0.89771958,3457.7,3456.2,0.05357292]
[1721312653097,2.89243,3457.3,3456.2,0.05357292]
[1721312653318,5.89252,3457.2,3456.4,2.89312]
[1721312653519,5.89261,3457.1,3456.3,2.8932]
[1721312653856,7.28,3457.4,3456.7,2.89292]
[1721312654197,7.28,3457.4,3456.8,0.05332832]
[1721312654522,2.89248,3457.3,3456.3,2.89319]
[1721312654682,2.89257,3457.2,3456.4,2.89311]
[1721312655125,2.89257,3457.2,3456.5,0.05345061]
[1721312655429,2.89273,3457.0,3456.5,0.05345061]
[1721312655729,2.89285,3456.8,3456.5,0.05345061]
[1721312655934,2.89285,3456.8,3456.1,0.01]
[1721312656083,2.89283,3456.9,3456.1,2.90343]
[1721312656288,2.89283,3456.9,3456.2,0.05357292]
[1721312656485,2.89273,3457.0,3456.2,2.94691292]
[1721312656803,2.89273,3457.0,3456.3,2.89326]
[1721312656995,8.586444,3457.4,3456.2,0.05357292]
[1721312657186,4.1586444,3457.3,3456.4,2.94667138]
[1721312657386,2.89256,3457.2,3456.4,2.89318]
[1721312657591,2.89259,3457.1,3456.5,0.05345061]
[1721312658032,2.89259,3457.1,3456.3,2.89318]
[1721312658331,2.89269,3457.0,3456.6,0.05340984]
[1721312658484,3.59781344,3457.0,3456.1,5.79676]
[1721312658685,0.70512344,3457.0,3456.7,0.05336908]
[1721312658921,0.70512344,3457.0,3456.1,2.90337]
[1721312659121,2.89259,3457.1,3456.3,2.89321]
[1721312659490,2.89259,3457.1,3456.4,0.05349138]
[1721312660819,7.0511144,3457.3,3456.4,0.05349138]
[1721312660820,7.0510944,3457.3,3456.4,0.05349138]
[1721312661141,2.89261,3457.1,3456.2,2.8933]
[1721312661369,0.59847972,3457.7,3456.8,2.89282]
[1721312661666,0.59847972,3457.9,3457.1,2.89251]
[1721312661947,2.89188,3458.0,3457.2,2.89251]
[1721312662147,2.89188,3458.0,3457.2,2.94557547]
[1721312662348,2.89204,3457.8,3457.2,0.05306547]
[1721312662711,2.89204,3457.8,3456.5,2.89309]
[1721312662712,3.181244,3457.8,3456.5,2.89309]
[1721312662911,2.89224,3457.6,3456.7,2.89293]
[1721312663144,2.89224,3457.6,3456.2,2.89331]
[1721312663145,3.181224,3457.8,3456.8,0.05322849]
[1721312663347,3.181224,3457.8,3457.0,2.89261]
[1721312663556,3.181224,3457.8,3457.1,0.05317509]
[1721312663910,0.289204,3457.8,3457.1,2.94576509]
[1721312664066,2.89187,3458.0,3457.2,2.8925]
[1721312664231,2.89187,3458.0,3457.1,0.05317509]
[1721312664232,2.89208,3457.8,3457.1,0.05317509]
[1721312664552,3.0,3457.9,3457.2,0.05312917]
[1721312664927,3.0,3457.9,3457.2,2.89243]
[1721312665117,5.89176,3458.1,3457.3,2.89241]
[1721312665317,5.89176,3458.1,3457.3,2.94547776]
[1721312665518,5.67176,3458.2,3457.3,2.89241]
[1721312665831,5.67176,3458.2,3457.5,2.89226]
[1721312666029,2.8916,3458.3,3457.5,2.89226]
[1721312666245,2.8916,3458.3,3457.6,0.05294552]
[1721312666572,0.59847972,3458.6,3457.7,2.89201]
[1721312666721,0.59847972,3458.6,3457.6,0.05294552]
[1721312666722,3.48987972,3458.6,3457.8,2.89196]
[1721312666924,0.59847972,3458.6,3457.9,0.05783671]
[1721312667166,5.67176,3458.8,3458.2,2.89167]
[1721312667318,0.59847972,3458.9,3458.0,2.89177]
[1721312667319,2.89111,3458.9,3458.0,2.89177]
[1721312667525,3.48948972,3459.0,3458.3,0.05260014]
[1721312667736,3.48948972,3459.0,3458.2,2.89165]
[1721312667737,2.89101,3459.0,3458.2,2.89165]
[1721312667977,2.89101,3459.0,3458.4,0.05255942]
[1721312668179,2.89109,3458.9,3458.3,0.05260014]
[1721312668349,2.89099,3459.1,3458.3,0.05260014]
[1721312668549,2.89099,3459.1,3458.3,2.94419014]
[1721312668909,2.89099,3459.1,3458.4,0.05255942]
[1721312669239,5.67176,3459.4,3458.4,0.05255942]
[1721312669240,0.59847972,3459.4,3458.4,0.05255942]
[1721312669482,0.59847972,3459.9,3458.6,2.89129]
[1721312669780,3.48856972,3460.1,3459.3,2.89073]
[1721312670086,2.89023,3460.0,3458.8,2.8911]
[1721312670262,2.89009,3460.1,3459.4,0.05193893]
[1721312670468,2.94217972,3460.2,3458.4,3.0]
[1721312670641,2.89023,3460.0,3459.1,2.89085]
[1721312671175,5.2337,3460.2,3459.3,2.89075]
[1721312671361,3.0,3460.1,3459.5,2.89059]
[1721312671568,3.0,3460.1,3459.6,2.9423541]
[1721312671745,8.56135,3460.7,3459.7,2.89035]
[1721312672074,2.88959,3460.7,3459.8,2.94163465]
[1721312672238,2.88959,3460.7,3459.9,2.89025]
[1721312672440,2.2727,3460.8,3459.9,0.05115905]
[1721312672748,3.405863,3460.7,3459.9,0.05115905]
[1721312672950,0.516213,3460.7,3459.9,2.89023]
[1721312673170,0.516213,3460.7,3460.0,2.94128837]
[1721312673691,2.89003,3460.2,3460.0,0.05111837]
[1721312673861,2.89003,3460.2,3459.2,2.89076]
[1721312674052,2.89015,3460.1,3459.2,2.89076]
[1721312674391,2.89015,3460.1,3459.3,0.04949015]
[1721312674540,3.0,3460.0,3459.3,2.94024015]
[1721312675201,3.0,3460.0,3459.3,0.04949015]
[1721312675397,5.89017,3460.0,3459.3,0.04949015]
[1721312675572,3.0,3460.0,3459.3,0.04949015]
[1721312675878,2.89018,3460.0,3459.3,0.04949015]
[1721312676081,3.0,3459.9,3459.3,0.04949015]
[1721312676297,5.89031,3459.9,3459.3,0.04949015]
[1721312676494,3.0,3459.9,3459.0,2.89099]
[1721312676797,2.89026,3459.9,3459.4,0.04944945]
[1721312677090,3.0,3459.8,3458.9,2.89107]
[1721312677252,3.0,3459.9,3459.1,2.8909]
[1721312677559,5.89027,3459.9,3459.1,2.8909]
[1721312677750,2.89036,3459.8,3459.2,0.04953085]
[1721312677950,3.0,3459.9,3459.2,0.04953085]
[1721312678292,3.0,3459.9,3459.3,0.04949015]
[1721312678749,3.0,3459.9,3459.3,2.8907]
[1721312678979,3.0,3460.1,3459.4,2.94004945]
[1721312679180,3.0,3460.2,3459.4,2.94004945]
[1721312679390,2.8899,3460.4,3459.4,2.94004945]
[1721312679588,2.88992,3460.3,3459.4,2.94004945]
[1721312679822,2.88992,3460.3,3459.5,2.89058]
[1721312680227,2.89002,3460.2,3459.6,0.04946919]
[1721312680522,2.88996,3460.3,3459.3,2.89074]
[1721312680681,5.67176,3460.6,3459.7,0.0494285]
[1721312680885,2.88984,3460.4,3459.4,2.89067]
[1721312681126,3.0,3460.3,3459.8,0.04938781]
[1721312681323,3.0,3460.3,3459.5,2.89058]
[1721312681485,3.0,3460.3,3459.9,0.04934712]
[1721312681684,7.33505,3460.3,3459.5,2.89058]
[1721312681927,7.33505,3460.3,3460.0,0.04929101]
[1721312682229,4.44513,3460.3,3460.1,0.04925032]
[1721312682386,1.44513,3460.3,3459.6,2.8905]
[1721312682587,3.0,3460.4,3459.7,0.04941307]
[1721312682982,5.88984,3460.4,3459.7,0.04941307]
[1721312683821,3.0,3460.4,3459.7,0.04941307]
[1721312684124,3.0,3460.5,3459.8,2.89033]
[1721312684508,3.0,3460.5,3459.6,5.78094]
[1721312684719,3.0,3460.5,3459.7,2.89041]
[1721312685006,3.0,3460.5,3459.9,2.89025]
[1721312686140,3.0,3460.5,3459.7,2.89038]
[1721312686300,3.0,3460.5,3459.8,2.89032]
[1721312686819,3.0,3460.5,3459.9,0.04936598]
[1721312687030,3.0,3460.5,3459.8,2.89032]
[1721312687194,2.88984,3460.4,3459.6,2.89048]
[1721312687395,2.88984,3460.4,3459.3,2.89072]
[1721312687396,2.88986,3460.4,3459.7,0.04940622]
[1721312687595,2.88998,3460.3,3459.5,2.89053]
[1721312688129,2.88998,3460.3,3459.6,0.04944691]
[1721312688303,0.82365288,3460.3,3459.6,2.93992691]
[1721312688625,2.88985,3460.4,3459.6,2.93987691]
[1721312688831,4.4350343,3460.5,3459.6,2.93987691]
[1721312689318,3.0,3460.5,3459.9,2.89024]
[1721312689696,2.88927,3461.1,3460.1,2.89001]
[1721312689898,3.0,3461.0,3460.2,2.88994]
[1721312690121,5.88939,3461.0,3460.2,2.93920993]
[1721312690313,3.0,3461.0,3460.4,2.88983]
[1721312690515,3.0,3461.1,3460.4,2.88983]
[1721312690722,3.0,3461.1,3460.5,0.04909447]
[1721312691294,3.0,3461.1,3460.5,2.93879447]
[1721312691508,5.88912,3461.3,3460.5,0.04909447]
[1721312691707,1.116065,3461.2,3460.5,0.04909447]
[1721312691994,1.116065,3461.2,3460.5,2.93879447]
[1721312692792,1.116065,3461.2,3460.5,0.04909447]
[1721312692994,1.116065,3461.2,3460.0,2.89015]
[1721312693202,2.88964,3460.7,3459.1,5.35756]
[1721312693528,3.0,3460.6,3459.8,2.89027]
[1721312693834,5.88967,3460.6,3459.8,2.89027]
[1721312694004,5.88967,3460.6,3459.9,2.93947715]
[1721312694005,3.0,3460.6,3459.9,2.93947715]
[1721312694212,3.0,3460.7,3460.0,2.89015]
[1721312694608,2.88942,3460.9,3460.1,0.04919205]
[1721312694824,3.0,3461.0,3460.4,2.88983]
[1721312695396,5.88923,3461.2,3460.5,0.04904991]
[1721312695709,2.88939,3461.0,3460.5,0.04904991]
[1721312695908,2.8896,3460.7,3460.0,2.89014]
[1721312696111,2.8896,3460.7,3460.6,0.04890981]
[1721312696306,5.88945,3460.9,3460.1,2.89003]
[1721312696529,2.88951,3460.8,3460.6,0.04890981]
[1721312696731,2.88958,3460.7,3459.8,2.89031]
[1721312697041,2.88958,3460.7,3459.8,5.78057]
[1721312697193,2.88958,3460.7,3459.5,2.4414]
[1721312697398,2.88958,3460.7,3459.6,2.89049]
[1721312697733,2.88983,3460.5,3459.5,2.89052]
[1721312697953,2.88993,3460.3,3459.6,2.8905]
[1721312698256,2.88993,3460.3,3459.6,2.9398132]
[1721312698741,2.88982,3460.5,3459.6,2.9397532]
[1721312698943,2.88982,3460.5,3459.7,2.89037]
[1721312699315,2.88982,3460.5,3459.8,0.04923182]
[1721312699518,2.88997,3460.3,3459.8,0.04923182]
[1721312699753,2.88984,3460.4,3459.7,2.8904]
[1721312699913,2.88984,3460.4,3459.9,0.04919113]
[1721312700117,2.88993,3460.3,3459.5,2.89051]
[1721312700620,2.88981,3460.5,3459.6,0.0493132]
[1721312700848,2.88984,3460.4,3459.6,2.9397532]
[1721312701118,2.89,3460.2,3459.6,0.0493132]
[1721312701318,2.8899,3460.4,3459.6,0.0493132]
[1721312701519,2.88992,3460.3,3459.5,2.89058]
[1721312701746,2.88992,3460.3,3459.7,0.04927251]